Cogmind - Beta 15 @@@ ROGUE MODE // 2025.08.26 @ 13:56:01 Player: winnking222 Result: Destroyed by 65-OKX(R) with Subdweller Shrapnel Launcher Performance ------------- Evolutions (0) 0 Regions Visited (2) 400 Robots Destroyed (32) 160 Value Destroyed (698) 698 Prototype IDs (11) 220 Alien Tech Used (0) 0 Bonus (-11) -11 TOTAL SCORE: 1467 Bonus ------- Friendly Fire -11 Cogmind --------- Core Integrity 0/250 Matter 205/300 Energy 100/100 System Corruption 0% Temperature Cool (0) Movement Treading (160) Location -10/Subcaves Parts ------- > --- POWER (1) -------- (None) > --- PROPULSION (2) --- Light Treads Light Treads > --- UTILITY (2) ------ Medium Storage Unit Propulsion Shielding > --- WEAPON (2) ------- Subdweller Machine Gun Subdweller Machine Gun > --- INVENTORY (10) --- Light Treads Wheel Medium Matter Pod (100) Structural Scanner Seismic Detector Gun Armor Subdweller Beam Cannon Assault Rifle Light Assault Rifle Grenade Launcher Peak State ------------ > --- POWER ------------ Subdweller Power Source > --- PROPULSION ------- Light Treads Light Treads > --- UTILITY ---------- Medium Storage Unit Seismic Detector > --- WEAPON ----------- Subdweller Beam Cannon Subdweller Machine Gun > --- INVENTORY -------- Light Treads Wheel Medium Matter Pod Structural Scanner Propulsion Shielding Gun Armor Assault Rifle Assault Rifle Light Assault Rifle Grenade Launcher [Rating: 11] Favorites ----------- Power Light Ion Engine Engine Light Ion Engine Propulsion Light Treads Treads Light Treads Utility Seismic Detector Device Seismic Detector Storage Medium Storage Unit Protection Propulsion Shielding Weapon Assault Rifle Energy Cannon Subdweller Beam Cannon Ballistic Gun Assault Rifle Launcher Grenade Launcher Build | -11 -10 -10 ------- Run | Yrd Mat Sub Slots Evolved . | . . . Power . | . . . Propulsion . | . . . Utility . | . . . Weapon . | . . . Parts Attached 22 | 7 6 9 Power 3 | 1 1 1 Engine 3 | 1 1 1 Core . | . . . Reactor . | . . . Propulsion 5 | 2 2 1 Treads 5 | 2 2 1 Leg . | . . . Wheel . | . . . Hover . | . . . Flight . | . . . Utility 6 | 2 1 3 Device 3 | 1 . 2 Storage 2 | 1 1 . Processor . | . . . Hackware . | . . . Protection 1 | . . 1 Artifact . | . . . Weapon 8 | 2 2 4 Energy Gun . | . . . Energy Cannon 1 | . . 1 Ballistic Gun 6 | 2 1 3 Ballistic Cannon . | . . . Launcher 1 | . 1 . Special Weapon . | . . . Impact Weapon . | . . . Slashing Weapon . | . . . Piercing Weapon . | . . . Special Melee Weapon . | . . . Unidentified Prototypes . | . . . Parts Lost 4 | . 1 3 Power 3 | . 1 2 Propulsion . | . . . Utility 1 | . . 1 Weapon . | . . . Highest Loss Streak 2 | . 1 2 To Critical Strikes . | . . . Average Backups 8 | 5 8 9 Power . | . . . Propulsion 2 | 2 2 2 Utility 2 | . 2 2 Weapon 2 | 1 2 3 Tool/Special . | . . . Unused Backups 7 | . 2 5 Power . | . . . Propulsion 4 | . 2 2 Utility 2 | . . 2 Weapon 1 | . . 1 Tool/Special . | . . . Average Slot Usage (%) 98 | . 99 97 Engine 12 | . 13 11 Treads 28 | . 28 28 Device 12 | . 14 11 Storage 14 | . 14 14 Protection 1 | . . 2 Energy Cannon 1 | . . 3 Ballistic Gun 25 | . 27 23 Peak Build Rating 11 | 7 8 11 Average Rating 7 | 5 7 9 On Entrance 5 | . 7 8 Naked Turns . | . . . Heaviest Build 28 | 13 18 28 Greatest Support 40 | 40 40 40 Greatest Overweight (x) 1 | 1 . . Average Overweight (x) . | . . . Largest Inventory Capacity 10 | 8 10 10 Average Capacity 9 | 7 9 10 Most Carried 10 | 6 10 10 Average Carried 8 | 5 8 8 Final Capacity 10 | 8 10 10 Final Carried 10 | 6 10 10 Class Distribution -------------------- 65% | Mutant 34% | Scavenger-Mutant Dominant Class ---------------- Mutant | -10/Materials Scavenger-Mutant | -10/Subcaves Resources | -11 -10 -10 ----------- Run | Yrd Mat Sub Matter Collected 1097 | 355 511 231 Remotely . | . . . Salvage Created 920 | 144 497 279 Parts 59 | 11 23 25 Haulers Intercepted 1 | . 1 . Recyclers Shooed . | . . . Parts Field Recycled . | . . . Retrieved Matter . | . . . Parts Self-Destructed 11 | . . 11 Prevented . | . . . Kills | -11 -10 -10 ------- Run | Yrd Mat Sub Combat Hostiles Destroyed 20 | . 10 10 Guns 12 | . 8 4 Cannons 1 | . . 1 AOE 7 | . 2 5 Classes Destroyed 8 | 3 3 2 Worker 4 | 1 3 . Tunneler 3 | 3 . . Hauler 1 | . 1 . Recycler 2 | 1 1 . Turret 2 | . . 2 Swarmer 6 | . 2 4 Grunt 10 | . 8 2 Subdweller 4 | . . 4 Best Kill Streak 7 | 1 2 7 Combat Bots Only 7 | . 2 7 Max Kills in Single Turn 2 | 1 2 2 Gunslinging . | . . . Exploded 2 | . 1 2 Melee . | . . . Uniques/NPCs Destroyed . | . . . Combat | -11 -10 -10 -------- Run | Yrd Mat Sub Hostile Shots Fired 100 | . 43 57 Missed 35 | . 13 22 Hits 65 | . 30 35 Projectile 65 | . 30 35 AOE 1 | . . 1 Critical Strikes 2 | . 2 . Damage Taken 992 | . 406 586 Core 254 | . 89 165 Absorbed by Shields . | . . . Redirected to Shielding 12 | . . 12 Core Remaining (%) 100 | 100 . . Volleys Fired 116 | 15 58 43 Largest 2 | 2 2 2 Hottest 110 | 40 50 110 Shots Fired 219 | 30 112 77 Gun 205 | 30 107 68 Cannon 5 | . . 5 Launcher 9 | . 5 4 Special . | . . . Kinetic 205 | 30 107 68 Thermal 5 | . . 5 Explosive 9 | . 5 4 Electromagnetic . | . . . Robot Hit Streak 11 | 10 8 11 Robot Miss Streak 7 | 3 7 1 Penetration Max . | . . . Secondary Targets 1 | . 1 . Max Gunslinging Chain 1 | . 1 . Shots Hit Robots 114 | 18 60 36 Core Hits 61 | 5 32 24 Critical Kills 1 | . 1 . Critical Parts Destroyed 2 | . 2 . Critical Strikes 3 | . 3 . Destroy 3 | . 3 . Melee Attacks . | . . . Impact . | . . . Slashing . | . . . Piercing . | . . . Sneak Attacks . | . . . Combat Hostiles . | . . . Follow-up Attacks . | . . . Damage Inflicted 2078 | 227 1066 785 Guns 1398 | 224 780 394 Cannons 132 | . . 132 Explosions 542 | . 283 259 Melee . | . . . Ramming 6 | 3 3 . Kinetic 1398 | 224 780 394 Thermal 132 | . . 132 Explosive 542 | . 283 259 Electromagnetic . | . . . Impact . | . . . Slashing . | . . . Piercing . | . . . Highest Corruption . | . . . Average Corruption . | . . . Corruption Purged . | . . . Corruption Blocked . | . . . Overload Shots . | . . . Overflow Damage . | . . . Projectiles . | . . . Explosions . | . . . Melee . | . . . Knockbacks . | . . . Impact . | . . . Kinetic . | . . . Secondary . | . . . Self-Inflicted Damage 22 | . . 22 Shots 1 | . . 1 Rammed 2 | 1 1 . Targets Rammed 2 | 1 1 . Kicked . | . . . Crushed . | . . . Highest Temperature 23 | . 23 . Average Temperature 7 | . 7 . Received Heat Transfer 333 | . 216 117 Siege Activations . | . . . Martial Activations . | . . . Shielding Activations . | . . . Robots Disrupted . | . . . Combat Hostiles . | . . . Robots Corrupted . | . . . Combat Hostiles . | . . . Parts Fried . | . . . Impact Corruptions . | . . . Robots Melted . | . . . Combat Hostiles . | . . . Parts Melted . | . . . Heat Transferred 185 | . . 185 Parts Sabotaged . | . . . Parts Stolen . | . . . Parts Stripped . | . . . Power Chain Reactions . | . . . Alert | -11 -10 -10 ------- Run | Yrd Mat Sub Maximum Alert Level . | . . . Low Security (%) 100 | 100 100 . Level 1 . | . . . Level 2 . | . . . Level 3 . | . . . Level 4 . | . . . Level 5 . | . . . High Security . | . . . Max Security . | . . . Peak Influence 72 | 5 72 . Initial . | . . . Average 21 | . 25 . Influence Increases 617 | 25 362 230 Destroy 0b10 Robot/C 360 | . 200 160 Destroy 0b10 Robot/NC 50 | 25 25 . Destroy Leader 52 | . 42 10 Trap Triggered on 0b10 10 | . 10 . Successful Hack 26 | . 26 . Destroy Structure 29 | . 29 . Lose Combat Pursuer 90 | . 30 60 Influence Decreases 617 | 25 361 231 Entered New Map 1 | . . 1 Time Decay 596 | 25 351 220 Lost Part 20 | . 10 10 Squads Dispatched 2 | . 2 . Investigation 1 | . 1 . Extermination . | . . . Reinforcement 1 | . 1 . Assault . | . . . Garrison . | . . . Intercept . | . . . Searches Triggered . | . . . Construction Impeded . | . . . Haulers Reinforced . | . . . Active Scanning Responses . | . . . Cargo Convoy Interrupts . | . . . Stealth | -11 -10 -10 --------- Run | Yrd Mat Sub Distress Signals . | . . . Communications Jammed . | . . . Distress Signals . | . . . Times Spotted 37 | . 24 13 Peak Tracking Total 5 | . 4 5 Tactical Retreats 5 | . 2 3 Traps | -11 -10 -10 ------- Run | Yrd Mat Sub Traps Triggered 2 | . 1 1 Indirectly . | . . . Trap Hack Attempts . | . . . Triggered . | . . . Disarmed . | . . . Reprogrammed 4 | . 4 . Reused 1 | . 1 . Traps Extracted . | . . . Installed . | . . . Triggered 1 | . 1 . Machines | -11 -10 -10 ---------- Run | Yrd Mat Sub Machines Disabled 3 | . 2 1 Max in Single Turn 2 | . 2 1 Machines Repaired . | . . . Machines Dismantled . | . . . Machines Sabotaged . | . . . Overloaded Fab Kills . | . . . Hacking | -11 -10 -10 --------- Run | Yrd Mat Sub Machines Accessed 8 | . 7 1 Terminals 7 | . 7 . Fabricators . | . . . Repair Stations . | . . . Recycling Units . | . . . Scanalyzers . | . . . Garrison Access . | . . . Total Hacks 20 | . 19 1 Successful 12 | . 11 1 Failed 8 | . 8 . Catastrophic . | . . . Database Lockouts . | . . . Manual 18 | . 18 . Terminals 19 | . 19 . Fabricators . | . . . Repair Stations . | . . . Recycling Units . | . . . Scanalyzers . | . . . Garrison Access . | . . . Terminal Hacks 2 | . 1 1 Reprogram Traps 1 | . 1 . Proto ID Catalog 1 | . . 1 Fabricator Hacks . | . . . Repair Station Hacks . | . . . Recycling Unit Hacks . | . . . Scanalyzer . | . . . Garrison Access Hacks . | . . . Unauthorized Hacks 10 | . 10 . Terminals 10 | . 10 . Assimilate 1 | . 1 . Botnet 4 | . 4 . Skim 5 | . 5 . Fabricators . | . . . Repair Stations . | . . . Recycling Units . | . . . Scanalyzers . | . . . Garrison Access . | . . . Data Cores Recovered . | . . . Used . | . . . Hacking Detections 5 | . 5 . Full Trace Events 3 | . 3 . Feedback Events . | . . . Feedback Blocked . | . . . Robot Schematics Acquired . | . . . Robots Built . | . . . Authchips . | . . . Time . | . . . Total Robot Build Rating . | . . . Part Schematics Acquired . | . . . Parts Built . | . . . Authchips . | . . . Time . | . . . Total Part Build Rating . | . . . Parts Repaired . | . . . Time . | . . . Parts Recycled . | . . . Recycled Matter . | . . . Retrieved Matter . | . . . Retrieved Components . | . . . Parts Scanalyzed . | . . . Part Schematics Acquired . | . . . Parts Damaged . | . . . Bothacking | -11 -10 -10 ------------ Run | Yrd Mat Sub Used RIF Installer . | . . . Robots Hacked . | . . . Non-combat . | . . . Combat . | . . . Robot Hacks Applied . | . . . Relay Couplers Released . | . . . Fabnet Peak Effective % . | . . . Robots Rewired . | . . . Allies Hacked . | . . . Hacks Repelled . | . . . Allies | -11 -10 -10 -------- Run | Yrd Mat Sub Total Allies . | . . . Largest Group . | . . . Highest-Rated Group . | . . . Highest-Rated Ally . | . . . Total Orders . | . . . Ally Attacks . | . . . Total Damage . | . . . Kills . | . . . Allies Corrupted . | . . . Allies Melted . | . . . Intel | -11 -10 -10 ------- Run | Yrd Mat Sub Active Infowar (turns) 2310 | 89 1291 930 Structural 1 | . . 1 Seismic 2309 | 89 1291 929 Robot Analysis Total . | . . . Derelict Logs Recovered . | . . . Drone Launches . | . . . Drone Recoveries . | . . . Exploration | -11 -10 -10 ------------- Run | Yrd Mat Sub Turns Passed 2623 | 231 1291 1101 Spaces Moved 1364 | 115 684 565 Core 16 | 16 . . Treads 1348 | 99 684 565 Legs . | . . . Wheels . | . . . Hover . | . . . Flight . | . . . Fastest Speed 50 | 50 160 160 Average Speed 158 | 145 160 160 Slowest Speed 160 | 160 160 160 Overloaded Moves . | . . . Propulsion Burnouts . | . . . Robots Hopped . | . . . Potential Cave-ins . | . . . Cave-ins Triggered . | . . . Exploration Rate (%) 44 | 6 94 32 Regions Visited 2 Branch Regions 1 Pre-discovered Areas 1 | . . 1 Known Exits Taken . | . . . Unknown Exits Taken 2 | 1 1 . Scrap Searched . | . . . Spaces Dug . | . . . Terrain Destroyed 51 | . 27 24 Melee . | . . . Projectile . | . . . AOE 51 | . 27 24 Terrain Rammed . | . . . Walls Destroyed . | . . . Machines Disabled . | . . . Actions | -11 -10 -10 --------- Run | Yrd Mat Sub Total 1601 | 146 771 684 Wait 60 | . 7 53 Move 1362 | 114 683 565 Hop . | . . . Pick Up 21 | 9 7 5 Fast Attach 4 | 4 . . Attach 6 | 3 1 2 Detach . | . . . Swap 21 | . 9 12 Drop 9 | . 5 4 Fire 116 | 15 58 43 Melee . | . . . Ram . | . . . Kick . | . . . Crush 2 | 1 1 . Escape Stasis . | . . . Rewire . | . . . Trap . | . . . Miscellaneous . | . . . Route ------- -11/Scrapyard -10/Materials (discovered 6 exits: [*Mat x3] / [*Min x2] / *Sub) -10/Subcaves (discovered 3 exits: [*Mat] / [*Rec] / [*Scr]) History --------- Turn | Location | Event 14 | -11/Scrapyard | Discovered new exit (range 15) 232 | -11/Scrapyard | Entered Materials 232 | -10/Materials | Discovered new exit (range 7) 312 | -10/Materials | Build established: Mutant 472 | -10/Materials | Discovered new exit (range 10) 671 | -10/Materials | Discovered new exit (range 15) 984 | -10/Materials | Discovered new exit (range 15) 1032 | -10/Materials | Derelicts attacked the area 1319 | -10/Materials | Discovered new exit (range 15) 1448 | -10/Materials | Discovered new exit (range 8) 1523 | -10/Materials | Entered Subcaves 1524 | -10/Subcaves | Approached by a straggling Scientist 1592 | -10/Subcaves | Destroyed 7 combat bots 1654 | -10/Subcaves | Discovered new exit (range 11) 1662 | -10/Subcaves | Core integrity fell below 50% 1688 | -10/Subcaves | A swath of the cavern ceiling suddenly collapsed 1878 | -10/Subcaves | Learned location of Zion (-7) 1878 | -10/Subcaves | Met a Zionite searching for "candidates" 2024 | -10/Subcaves | Build established: Scavenger-Mutant 2097 | -10/Subcaves | Visited 4L-MR0's lab 2111 | -10/Subcaves | Found Gun Armor 2397 | -10/Subcaves | Discovered new exit (range 15) 2413 | -10/Subcaves | Core integrity fell below 20% 2492 | -10/Subcaves | Scientist uncovered a shortcut to Scraptown 2624 | -10/Subcaves | Destroyed by 65-OKX(R) with Subdweller Shrapnel Launcher Last Messages --------------- 02313_ Acquired Sub. Beam Cannon. 02314_ Acquired 28 matter. 02316_ Extracted 4 energy. 02321_ Dropped Lgt. Treads. 02321_ Acquired Structural Scanner. 02326_ Subatomizers dissect the Lgt. Treads. ZQ-SKV(c): "I think it's somewhere south of here" 02397_ EXIT=FOUND 02416_ I2-SJD(R) destroyed. 02419_ LM-D0K(R) destroyed. 02426_ Subatomizers dissect the Disposable Heat Sink. 02428_ Acquired 32 matter. 02433_ Dropped Assault Rifle. 02436_ Acquired 34 matter. 02440_ Subatomizers dissect the Sub. Power Source. ZQ-SKV(c): "I think it's somewhere south of here" 02492_ ZQ-SKV(c): "Hah, right again, there it is!" 02498_ ZQ-SKV(c) exits level. 02566_ 9N-ATF(u) tweaks Twisted Machinery. 02624_ Sub. Power Source destroyed. Map ----- +----------------------------------------------------+ | ???????????????????????### # !### ## #### | | ???????????????????????##### ######### ####??### | | ??????????????????????????## "###??## #???????? | | ?????????????????????????## " ### #??#????? | | ?????????????????????????## "" ##? #????? | | ?????????????????????????# ## ##? #????? | | ????????????????????????? ### #?# ##???? | | ????????????????????????"" ### ## #???? | | ???????????????????????#"" ## ""#?????? | | ???????????????????????#"" ""#?????? | | ????????????????????????#" ""#?????? | | ????????????????????????##" ## ""####?????? | | ????????????????????????#"" #?## ####????????? | | ?????????????????????????#" ###???# " #??????????? | | ????????????????????###??"" ??##?# #??????" ??? | | ????????????????????#" ### "### #?# ##??????""" # | | ?????????????# ?###?#" ""## ### #???????""""# | | ?????????????# # ## ""# ##?????? "" # | | ????????????# "# ## #?????? ""# | | ???????????"" ## ####??? "? | | ??????????? " #?## ""##?? #?? | | ???????????????# ## ##?## " ### #?? | | ???????????????????## ##?# " ## #?? | | ????????????????????## ## ### = ! ### | | ?????????????????????## R## ### !*& # | | ????????????????????### @ ##?# !=[ | | ????????????????? """"" ## ##??# | | ??????????????? """ #?##???# | | ??????????????? " #???#### < | | ??????????????? ## #??## # | | ????????????? ## # #??# ## | | ?????????????? ???## ### ##?## ####? | | ???????????????#??????##?# ### ### #####? | | ?????????????????????????## ## ##?## ### #? | | ??????????????????????????# ##??## ## #? | | ??????????????????????????# ###?### #?? | | ??????????????????????????# ## ### #??## #?? | | ??????????????????????????######?## #### ##? | | ??????????????????????????????????## ## #? | | ???????????????????????????????????# #####? | | ???????????????????????????????????### ##????? | | ?????????????????????????????????????## ##?????? | | ??????????????????????????????????????## #??????? | | ??????????????????????????????????????# #??????? | | ??????????????????????????????????????# #??????? | | ??????????????????????????????????????# #??????? | | ??????????????????????????????????????## #??????? | | ??????????????????????????????????????## ##?????? | | ???????????????????????????????????#### #?????? | | ?????????????????????????????????### ## #?????? | +----------------------------------------------------+ Best States ------------- Heat Dissipation 25 Energy Generation 15 Energy Capacity 200 Matter Stores 300 Matter Capacity 300 Sight Range 16 Terrain Scan Density 10 Propulsion Shielding 33 Evasion (%) 50 Recoil Reduction 2 Item Schematics ----------------- None Robot Schematics ------------------ None Fabricated ------------ Nothing Repaired ---------- Nothing Alien Tech Used ----------------- None Achievements -------------- None Challenges ------------ None Game ------ Seed SalvagingTiamatShotgun Manual? 0 Play Time 00:14:19 Cumulative 150.8 hours Start 2025.08.26 @ 13:43:26 End 2025.08.26 @ 13:56:01 Sessions 1 Manual Loads 0 Difficulty Rogue Special Mode None Game No. 213 Rogue 213 Adventurer 0 Explorer 0 Win Type - Total 1 Types 1/0/0/0/0/0/0/0/0/0 Lore% 70 Gallery% 64 Achievement% 55 Wizard Run 0 Options --------- Layout 0 ASCII 0 Keyboard 0 Movement Mouse Keybinds 0 Fullscreen 1 Font 16/SmallcapsGlow Map View 75x55 Zoom Use 0% Tactical HUD 1 Map Filters NONE Filters NONE Steam 1 RUN: 9ab5423b-ab07-41b8-bd92-498d9e4e2f0a